[Event "January 9 Early 2024"]
[Site "https://www.chess.com"]
[Date "2024.01.11"]
[Round "4"]
[White "Ambartsumova, Karina"]
[Black "Gruzman, Ilya"]
[Result "0-1"]
[Board "209"]
[TimeControl "180+1"]
[WhiteFideId "4166299"]
[BlackFideId "2812703"]
[WhiteElo "2596"]
[BlackElo "2420"]
[WhiteTeam "RUS"]
[BlackTeam "ISR"]
[WhiteClock "0:00:02"]
[BlackClock "0:00:19"]

1. d4 {[%clk 0:03:00]}  Nf6 {[%clk 0:02:59]} 2. c4 {[%clk 0:03:01]}  g6 {[%clk 0:03:00]} 3. Nc3 {[%clk 0:03:00]}  Bg7 {[%clk 0:03:00]} 4. g3 {[%clk 0:03:01]}  d6 {[%clk 0:03:01]} 5. Bg2 {[%clk 0:03:01]}  O-O {[%clk 0:03:02]} 6. Nf3 {[%clk 0:03:01]}  c5 {[%clk 0:03:02]} 7. O-O {[%clk 0:03:01]}  Nc6 {[%clk 0:03:03]} 8. d5 {[%clk 0:02:55]}  Na5 {[%clk 0:03:03]} 9. Qd3 {[%clk 0:02:53]}  e6 {[%clk 0:02:57]} 10. e4 {[%clk 0:02:53]}  exd5 {[%clk 0:02:58]} 11. cxd5 {[%clk 0:02:54]}  a6 {[%clk 0:02:58]} 12. a4 {[%clk 0:02:52]}  Nb3 {[%clk 0:02:58]} 13. Rb1 {[%clk 0:02:50]}  Nxc1 {[%clk 0:02:58]} 14. Rfxc1 {[%clk 0:02:43]}  Rb8 {[%clk 0:02:32]} 15. b4 {[%clk 0:02:32]}  cxb4 {[%clk 0:02:32]} 16. Rxb4 {[%clk 0:02:33]}  Nd7 {[%clk 0:02:32]} 17. Ne2 {[%clk 0:02:23]}  Nc5 {[%clk 0:02:31]} 18. Qb1 {[%clk 0:02:03]}  Bd7 {[%clk 0:02:31]} 19. Ned4 {[%clk 0:01:41]}  Bxa4 {[%clk 0:02:27]} 20. e5 {[%clk 0:01:35]}  a5 {[%clk 0:01:57]} 21. Rb6 {[%clk 0:01:08]}  dxe5 {[%clk 0:01:55]} 22. Rxc5 {[%clk 0:01:03]}  exd4 {[%clk 0:01:55]} 23. Nd2 {[%clk 0:00:53]}  d3 {[%clk 0:01:44]} 24. Rxb7 {[%clk 0:00:45]}  Rxb7 {[%clk 0:01:14]} 25. Qxb7 {[%clk 0:00:46]}  Bc2 {[%clk 0:01:14]} 26. Be4 {[%clk 0:00:20]}  Bd4 {[%clk 0:01:09]} 27. Rxc2 {[%clk 0:00:18]}  dxc2 {[%clk 0:01:07]} 28. Bxc2 {[%clk 0:00:19]}  Qc8 {[%clk 0:00:48]} 29. Qb3 {[%clk 0:00:14]}  Qc3 {[%clk 0:00:40]} 30. Ne4 {[%clk 0:00:12]}  Qxb3 {[%clk 0:00:29]} 31. Bxb3 {[%clk 0:00:13]}  Rb8 {[%clk 0:00:28]} 32. Ba4 {[%clk 0:00:09]}  Rb4 {[%clk 0:00:27]} 33. Bc6 {[%clk 0:00:09]}  a4 {[%clk 0:00:27]} 34. d6 {[%clk 0:00:08]}  a3 {[%clk 0:00:25]} 35. d7 {[%clk 0:00:05]}  Bb6 {[%clk 0:00:25]} 36. Nf6+ {[%clk 0:00:06]}  Kg7 {[%clk 0:00:20]} 37. Nd5 {[%clk 0:00:06]}  Rb1+ {[%clk 0:00:19]} 38. Kg2 {[%clk 0:00:06]}  Bd8 {[%clk 0:00:19]} 39. Nc3 {[%clk 0:00:02]}  Rc1 {[%clk 0:00:19]} 40. Na2 {[%clk 0:00:01]}  Rxc6 {[%clk 0:00:18]} 41. Nb4 {[%clk 0:00:01]}  Rb6 {[%clk 0:00:18]} 42. Na2 {[%clk 0:00:01]}  Rb2 {[%clk 0:00:18]} 43. Nc3 {[%clk 0:00:02]}  a2 {[%clk 0:00:19]} 0-1

[Event "January 9 Early 2024"]
[Site "https://www.chess.com"]
[Date "2024.01.11"]
[Round "4"]
[White "Hoffmann, Asa"]
[Black "Niemann, Hans Moke"]
[Result "0-1"]
[Board "211"]
[TimeControl "180+1"]
[WhiteFideId "2001470"]
[BlackFideId "2093596"]
[WhiteElo "2383"]
[BlackElo "3061"]
[WhiteTeam "USA"]
[BlackTeam "USA"]
[WhiteClock "0:00:11"]
[BlackClock "0:00:21"]

1. d4 {[%clk 0:02:57]}  Nf6 {[%clk 0:02:59]} 2. Bg5 {[%clk 0:02:47]}  d5 {[%clk 0:02:58]} 3. Nd2 {[%clk 0:02:45]}  c5 {[%clk 0:02:56]} 4. e3 {[%clk 0:02:43]}  Qb6 {[%clk 0:02:56]} 5. dxc5 {[%clk 0:02:40]}  Qxc5 {[%clk 0:02:52]} 6. Ngf3 {[%clk 0:02:32]}  Nc6 {[%clk 0:02:51]} 7. c3 {[%clk 0:02:32]}  Ne4 {[%clk 0:02:35]} 8. Bf4 {[%clk 0:02:29]}  Qb6 {[%clk 0:02:27]} 9. Qb3 {[%clk 0:02:22]}  Nxd2 {[%clk 0:02:23]} 10. Kxd2 {[%clk 0:02:12]}  Qa5 {[%clk 0:02:00]} 11. Qb5 {[%clk 0:02:09]}  f6 {[%clk 0:01:55]} 12. Qxa5 {[%clk 0:02:07]}  Nxa5 {[%clk 0:01:56]} 13. h4 {[%clk 0:02:04]}  e5 {[%clk 0:01:55]} 14. Bg3 {[%clk 0:02:04]}  h5 {[%clk 0:01:53]} 15. Bb5+ {[%clk 0:01:54]}  Kf7 {[%clk 0:01:51]} 16. Rhd1 {[%clk 0:01:46]}  Be6 {[%clk 0:01:51]} 17. Ke1 {[%clk 0:01:44]}  Be7 {[%clk 0:01:50]} 18. Nd2 {[%clk 0:01:34]}  a6 {[%clk 0:01:49]} 19. Be2 {[%clk 0:01:33]}  Nc6 {[%clk 0:01:48]} 20. Rac1 {[%clk 0:01:28]}  g6 {[%clk 0:01:48]} 21. f3 {[%clk 0:01:24]}  Rhd8 {[%clk 0:01:45]} 22. Bf2 {[%clk 0:01:24]}  Rac8 {[%clk 0:01:42]} 23. Nb3 {[%clk 0:01:20]}  b5 {[%clk 0:01:38]} 24. Bd3 {[%clk 0:01:13]}  f5 {[%clk 0:01:35]} 25. Be2 {[%clk 0:01:11]}  Rg8 {[%clk 0:01:15]} 26. g3 {[%clk 0:01:09]}  Rgd8 {[%clk 0:01:15]} 27. f4 {[%clk 0:01:08]}  Bf6 {[%clk 0:01:08]} 28. fxe5 {[%clk 0:01:03]}  Nxe5 {[%clk 0:01:08]} 29. Nd4 {[%clk 0:01:02]}  Bd7 {[%clk 0:01:04]} 30. Nf3 {[%clk 0:00:49]}  Nc4 {[%clk 0:01:04]} 31. Bxc4 {[%clk 0:00:47]}  dxc4 {[%clk 0:01:04]} 32. Nd4 {[%clk 0:00:46]}  a5 {[%clk 0:01:02]} 33. a3 {[%clk 0:00:45]}  Rb8 {[%clk 0:00:56]} 34. Ra1 {[%clk 0:00:42]}  Be8 {[%clk 0:00:51]} 35. Ke2 {[%clk 0:00:41]}  Rb7 {[%clk 0:00:42]} 36. Be1 {[%clk 0:00:41]}  Re7 {[%clk 0:00:41]} 37. Bf2 {[%clk 0:00:40]}  Rb8 {[%clk 0:00:41]} 38. Be1 {[%clk 0:00:38]}  Bd7 {[%clk 0:00:41]} 39. Kf2 {[%clk 0:00:37]}  Rbe8 {[%clk 0:00:32]} 40. Bd2 {[%clk 0:00:36]}  f4 {[%clk 0:00:32]} 41. gxf4 {[%clk 0:00:30]}  Bxh4+ {[%clk 0:00:31]} 42. Kg2 {[%clk 0:00:30]}  g5 {[%clk 0:00:26]} 43. Nf3 {[%clk 0:00:29]}  Bc6 {[%clk 0:00:26]} 44. fxg5 {[%clk 0:00:25]}  Bxg5 {[%clk 0:00:22]} 45. Rf1 {[%clk 0:00:21]}  Kg6 {[%clk 0:00:20]} 46. Rae1 {[%clk 0:00:20]}  Bxe3 {[%clk 0:00:20]} 47. Bxe3 {[%clk 0:00:18]}  Rxe3 {[%clk 0:00:21]} 48. Rxe3 {[%clk 0:00:17]}  Rxe3 {[%clk 0:00:21]} 49. Kg3 {[%clk 0:00:15]}  Kf5 {[%clk 0:00:22]} 50. Rf2 {[%clk 0:00:12]}  h4+ {[%clk 0:00:21]} 51. Kg2 {[%clk 0:00:11]}  Kf4 {[%clk 0:00:21]} 0-1

[Event "January 9 Early 2024"]
[Site "https://www.chess.com"]
[Date "2024.01.11"]
[Round "4"]
[White "Yurasov, Matfey"]
[Black "Plyasunov, Daniil"]
[Result "1-0"]
[Board "212"]
[TimeControl "180+1"]
[WhiteFideId "55617603"]
[BlackFideId "44133839"]
[WhiteElo "2557"]
[BlackElo "2735"]
[WhiteTeam "FID"]
[BlackTeam "RUS"]
[WhiteClock "0:00:05"]
[BlackClock "0:00:01"]

1. e4 {[%clk 0:02:54]}  c6 {[%clk 0:02:59]} 2. d3 {[%clk 0:02:53]}  d5 {[%clk 0:03:00]} 3. Nd2 {[%clk 0:02:51]}  e5 {[%clk 0:02:59]} 4. Ngf3 {[%clk 0:02:49]}  Bd6 {[%clk 0:02:59]} 5. g3 {[%clk 0:02:48]}  Nf6 {[%clk 0:02:58]} 6. Bg2 {[%clk 0:02:48]}  O-O {[%clk 0:02:59]} 7. O-O {[%clk 0:02:49]}  Nbd7 {[%clk 0:02:59]} 8. Re1 {[%clk 0:02:49]}  Re8 {[%clk 0:02:58]} 9. b3 {[%clk 0:02:48]}  a5 {[%clk 0:02:58]} 10. Bb2 {[%clk 0:02:46]}  a4 {[%clk 0:02:51]} 11. bxa4 {[%clk 0:02:42]}  Rxa4 {[%clk 0:02:52]} 12. c4 {[%clk 0:02:40]}  Ra8 {[%clk 0:02:51]} 13. cxd5 {[%clk 0:02:39]}  cxd5 {[%clk 0:02:51]} 14. exd5 {[%clk 0:02:39]}  Nxd5 {[%clk 0:02:52]} 15. Nc4 {[%clk 0:02:39]}  Bb4 {[%clk 0:02:46]} 16. Re2 {[%clk 0:02:26]}  Nc3 {[%clk 0:02:44]} 17. Bxc3 {[%clk 0:02:25]}  Bxc3 {[%clk 0:02:45]} 18. Rc1 {[%clk 0:02:25]}  Bb4 {[%clk 0:02:31]} 19. Qb3 {[%clk 0:02:10]}  Bf8 {[%clk 0:02:24]} 20. Ncxe5 {[%clk 0:02:09]}  Nxe5 {[%clk 0:02:25]} 21. Nxe5 {[%clk 0:02:09]}  Be6 {[%clk 0:02:25]} 22. Qxb7 {[%clk 0:02:03]}  Rxa2 {[%clk 0:02:23]} 23. Rxa2 {[%clk 0:01:56]}  Bxa2 {[%clk 0:02:24]} 24. Qb2 {[%clk 0:01:44]}  Qa5 {[%clk 0:01:31]} 25. d4 {[%clk 0:01:31]}  f6 {[%clk 0:01:20]} 26. Nc4 {[%clk 0:00:38]}  Bxc4 {[%clk 0:00:42]} 27. Rxc4 {[%clk 0:00:39]}  Re1+ {[%clk 0:00:37]} 28. Bf1 {[%clk 0:00:35]}  Qd5 {[%clk 0:00:35]} 29. Rc8 {[%clk 0:00:25]}  Qd6 {[%clk 0:00:12]} 30. Qc2 {[%clk 0:00:15]}  h6 {[%clk 0:00:09]} 31. Kg2 {[%clk 0:00:12]}  Qd5+ {[%clk 0:00:09]} 32. f3 {[%clk 0:00:11]}  Qd6 {[%clk 0:00:07]} 33. Bc4+ {[%clk 0:00:10]}  Kh8 {[%clk 0:00:05]} 34. Qd2 {[%clk 0:00:09]}  Ra1 {[%clk 0:00:03]} 35. Qd3 {[%clk 0:00:07]}  Ra7 {[%clk 0:00:02]} 36. Qe4 {[%clk 0:00:05]}  Rc7 {[%clk 0:00:01]} 37. Rxc7 {[%clk 0:00:04]}  Qxc7 {[%clk 0:00:01]} 38. Qd5 {[%clk 0:00:05]} 1-0

[Event "January 9 Early 2024"]
[Site "https://www.chess.com"]
[Date "2024.01.11"]
[Round "4"]
[White "Korchmar, Vasiliy"]
[Black "Parfenov, Viktor N."]
[Result "1-0"]
[Board "214"]
[TimeControl "180+1"]
[WhiteFideId "24131750"]
[BlackFideId "4165969"]
[WhiteElo "2717"]
[BlackElo "2531"]
[WhiteTeam "RUS"]
[BlackTeam "RUS"]
[WhiteClock "0:00:02"]
[BlackClock "0:00:32"]

1. e4 {[%clk 0:03:00]}  e5 {[%clk 0:02:59]} 2. Nf3 {[%clk 0:03:01]}  Nc6 {[%clk 0:02:59]} 3. Bc4 {[%clk 0:03:01]}  Nf6 {[%clk 0:02:59]} 4. d3 {[%clk 0:03:00]}  Bc5 {[%clk 0:02:58]} 5. c3 {[%clk 0:02:57]}  O-O {[%clk 0:02:57]} 6. Bg5 {[%clk 0:02:56]}  h6 {[%clk 0:02:55]} 7. Bh4 {[%clk 0:02:56]}  Be7 {[%clk 0:02:55]} 8. O-O {[%clk 0:02:55]}  d6 {[%clk 0:02:56]} 9. Nbd2 {[%clk 0:02:51]}  Nh5 {[%clk 0:02:55]} 10. Bg3 {[%clk 0:02:51]}  Nxg3 {[%clk 0:02:55]} 11. fxg3 {[%clk 0:02:52]}  Be6 {[%clk 0:02:55]} 12. Qb3 {[%clk 0:02:31]}  Na5 {[%clk 0:02:51]} 13. Qc2 {[%clk 0:02:23]}  Nxc4 {[%clk 0:02:51]} 14. Nxc4 {[%clk 0:02:23]}  f6 {[%clk 0:02:32]} 15. Ne3 {[%clk 0:02:19]}  d5 {[%clk 0:02:26]} 16. Nh4 {[%clk 0:02:14]}  Bc5 {[%clk 0:02:17]} 17. Rae1 {[%clk 0:02:00]}  dxe4 {[%clk 0:02:09]} 18. dxe4 {[%clk 0:01:58]}  Qd6 {[%clk 0:01:57]} 19. Kh1 {[%clk 0:01:57]}  Bxe3 {[%clk 0:01:57]} 20. Rxe3 {[%clk 0:01:57]}  Rad8 {[%clk 0:01:54]} 21. Qf2 {[%clk 0:01:34]}  Qd2 {[%clk 0:01:50]} 22. Re2 {[%clk 0:01:34]}  Qd3 {[%clk 0:01:45]} 23. Rfe1 {[%clk 0:01:26]}  Bxa2 {[%clk 0:01:41]} 24. Nf5 {[%clk 0:00:41]}  Be6 {[%clk 0:01:39]} 25. g4 {[%clk 0:00:35]}  a5 {[%clk 0:01:33]} 26. h3 {[%clk 0:00:33]}  b6 {[%clk 0:01:29]} 27. Ng3 {[%clk 0:00:21]}  Rd7 {[%clk 0:01:20]} 28. Nh5 {[%clk 0:00:21]}  Bf7 {[%clk 0:01:17]} 29. Ng3 {[%clk 0:00:17]}  Bg6 {[%clk 0:01:17]} 30. Nf5 {[%clk 0:00:08]}  Rfd8 {[%clk 0:01:12]} 31. Kh2 {[%clk 0:00:07]}  Qc4 {[%clk 0:01:06]} 32. Qh4 {[%clk 0:00:04]}  Bxf5 {[%clk 0:01:05]} 33. gxf5 {[%clk 0:00:04]}  Rd2 {[%clk 0:01:03]} 34. Re3 {[%clk 0:00:04]}  R8d3 {[%clk 0:01:00]} 35. Qg3 {[%clk 0:00:02]}  Rxe3 {[%clk 0:00:58]} 36. Rxe3 {[%clk 0:00:03]}  Qc5 {[%clk 0:00:53]} 37. Rf3 {[%clk 0:00:02]}  Rd1 {[%clk 0:00:51]} 38. h4 {[%clk 0:00:02]}  Qg1+ {[%clk 0:00:51]} 39. Kh3 {[%clk 0:00:03]}  Qe1 {[%clk 0:00:50]} 40. Qg6 {[%clk 0:00:03]}  Qh1+ {[%clk 0:00:48]} 41. Kg3 {[%clk 0:00:03]}  Rd8 {[%clk 0:00:48]} 42. Kf2 {[%clk 0:00:02]}  Qd1 {[%clk 0:00:48]} 43. Rg3 {[%clk 0:00:02]}  Qd7 {[%clk 0:00:45]} 44. Kg1 {[%clk 0:00:02]}  Qe7 {[%clk 0:00:45]} 45. Qxh6 {[%clk 0:00:02]}  a4 {[%clk 0:00:44]} 46. h5 {[%clk 0:00:02]}  Rd1+ {[%clk 0:00:43]} 47. Kh2 {[%clk 0:00:02]}  b5 {[%clk 0:00:41]} 48. Qg6 {[%clk 0:00:02]}  Rd7 {[%clk 0:00:40]} 49. h6 {[%clk 0:00:02]}  c5 {[%clk 0:00:39]} 50. hxg7 {[%clk 0:00:02]}  Qf7 {[%clk 0:00:34]} 51. Qh6 {[%clk 0:00:02]}  Qe7 {[%clk 0:00:32]} 52. Qh8+ {[%clk 0:00:02]} 1-0

[Event "January 9 Early 2024"]
[Site "https://www.chess.com"]
[Date "2024.01.11"]
[Round "4"]
[White "Nigalidze, Gaioz"]
[Black "Kjartansson, David"]
[Result "1-0"]
[Board "215"]
[TimeControl "180+1"]
[WhiteFideId "13603078"]
[BlackFideId "2301130"]
[WhiteElo "2669"]
[BlackElo "2417"]
[WhiteTeam "GEO"]
[BlackTeam "ISL"]
[WhiteClock "0:00:06"]
[BlackClock "0:00:05"]

1. e4 {[%clk 0:02:52]}  c5 {[%clk 0:03:00]} 2. Nf3 {[%clk 0:02:52]}  Nc6 {[%clk 0:03:00]} 3. Bb5 {[%clk 0:02:51]}  g6 {[%clk 0:03:00]} 4. O-O {[%clk 0:02:50]}  Bg7 {[%clk 0:03:00]} 5. Bxc6 {[%clk 0:02:50]}  dxc6 {[%clk 0:03:00]} 6. h3 {[%clk 0:02:48]}  Nf6 {[%clk 0:02:59]} 7. d3 {[%clk 0:02:48]}  Nd7 {[%clk 0:02:57]} 8. Nbd2 {[%clk 0:02:45]}  e5 {[%clk 0:02:57]} 9. a3 {[%clk 0:02:43]}  Nf8 {[%clk 0:02:51]} 10. b4 {[%clk 0:02:41]}  cxb4 {[%clk 0:02:48]} 11. axb4 {[%clk 0:02:42]}  Ne6 {[%clk 0:02:48]} 12. Bb2 {[%clk 0:02:42]}  Nd4 {[%clk 0:02:44]} 13. Nxd4 {[%clk 0:02:36]}  exd4 {[%clk 0:02:44]} 14. Nb3 {[%clk 0:02:26]}  O-O {[%clk 0:02:37]} 15. Ra5 {[%clk 0:02:13]}  b6 {[%clk 0:02:19]} 16. Ra4 {[%clk 0:01:54]}  Be6 {[%clk 0:02:07]} 17. Nd2 {[%clk 0:01:44]}  b5 {[%clk 0:01:55]} 18. Ra6 {[%clk 0:01:38]}  Qd7 {[%clk 0:01:52]} 19. f4 {[%clk 0:01:21]}  f5 {[%clk 0:01:50]} 20. e5 {[%clk 0:01:21]}  Bd5 {[%clk 0:01:20]} 21. Nf3 {[%clk 0:00:45]}  Bxf3 {[%clk 0:01:12]} 22. Qxf3 {[%clk 0:00:45]}  Rac8 {[%clk 0:01:12]} 23. Rfa1 {[%clk 0:00:38]}  Rc7 {[%clk 0:01:12]} 24. Qf2 {[%clk 0:00:36]}  Rd8 {[%clk 0:01:12]} 25. h4 {[%clk 0:00:36]}  Bf8 {[%clk 0:01:10]} 26. Qe1 {[%clk 0:00:33]}  Qe7 {[%clk 0:01:06]} 27. g3 {[%clk 0:00:28]}  Rdd7 {[%clk 0:01:00]} 28. Ba3 {[%clk 0:00:26]}  Qe6 {[%clk 0:00:57]} 29. Qf2 {[%clk 0:00:24]}  h6 {[%clk 0:00:57]} 30. Qf3 {[%clk 0:00:21]}  Kg7 {[%clk 0:00:54]} 31. Kh2 {[%clk 0:00:18]}  Be7 {[%clk 0:00:52]} 32. Kh3 {[%clk 0:00:18]}  Rd8 {[%clk 0:00:50]} 33. Kg2 {[%clk 0:00:18]}  g5 {[%clk 0:00:50]} 34. hxg5 {[%clk 0:00:17]}  hxg5 {[%clk 0:00:51]} 35. fxg5 {[%clk 0:00:17]}  Rh8 {[%clk 0:00:51]} 36. Rf1 {[%clk 0:00:15]}  Kg6 {[%clk 0:00:51]} 37. Bb2 {[%clk 0:00:14]}  Bxg5 {[%clk 0:00:16]} 38. Bxd4 {[%clk 0:00:13]}  Rd8 {[%clk 0:00:15]} 39. Bc3 {[%clk 0:00:08]}  Qc8 {[%clk 0:00:11]} 40. Rh1 {[%clk 0:00:06]}  Rh7 {[%clk 0:00:07]} 41. Rxc6+ {[%clk 0:00:05]}  Qxc6 {[%clk 0:00:05]} 42. Qxc6+ {[%clk 0:00:06]} 1-0

[Event "January 9 Early 2024"]
[Site "https://www.chess.com"]
[Date "2024.01.11"]
[Round "4"]
[White "Kazakouski, Valery"]
[Black "Le, Tuan Minh"]
[Result "0-1"]
[Board "216"]
[TimeControl "180+1"]
[WhiteFideId "13507443"]
[BlackFideId "12401153"]
[WhiteElo "2837"]
[BlackElo "3008"]
[WhiteTeam "LTU"]
[BlackTeam "VIE"]
[WhiteClock "0:00:03"]
[BlackClock "0:00:17"]

1. Nf3 {[%clk 0:02:58]}  d5 {[%clk 0:02:55]} 2. c4 {[%clk 0:02:57]}  c6 {[%clk 0:02:55]} 3. g3 {[%clk 0:02:57]}  g6 {[%clk 0:02:52]} 4. Qa4 {[%clk 0:02:52]}  d4 {[%clk 0:02:46]} 5. b4 {[%clk 0:02:48]}  Bg7 {[%clk 0:02:46]} 6. d3 {[%clk 0:02:48]}  e5 {[%clk 0:02:46]} 7. Bg2 {[%clk 0:02:47]}  Ne7 {[%clk 0:02:46]} 8. O-O {[%clk 0:02:47]}  O-O {[%clk 0:02:47]} 9. Qb3 {[%clk 0:02:48]}  h6 {[%clk 0:02:45]} 10. a4 {[%clk 0:02:47]}  Be6 {[%clk 0:02:43]} 11. Nbd2 {[%clk 0:02:39]}  Nd7 {[%clk 0:02:41]} 12. Ba3 {[%clk 0:02:39]}  f5 {[%clk 0:02:34]} 13. Rae1 {[%clk 0:02:34]}  a5 {[%clk 0:01:57]} 14. b5 {[%clk 0:02:31]}  c5 {[%clk 0:01:56]} 15. e3 {[%clk 0:02:31]}  dxe3 {[%clk 0:01:30]} 16. Rxe3 {[%clk 0:02:27]}  g5 {[%clk 0:01:18]} 17. Rfe1 {[%clk 0:01:47]}  Ng6 {[%clk 0:01:14]} 18. d4 {[%clk 0:01:40]}  e4 {[%clk 0:01:13]} 19. dxc5 {[%clk 0:01:39]}  Re8 {[%clk 0:01:04]} 20. g4 {[%clk 0:01:16]}  fxg4 {[%clk 0:00:54]} 21. Rxe4 {[%clk 0:01:16]}  Ndf8 {[%clk 0:00:44]} 22. Bc1 {[%clk 0:00:52]}  gxf3 {[%clk 0:00:43]} 23. Nxf3 {[%clk 0:00:53]}  Qc7 {[%clk 0:00:36]} 24. Be3 {[%clk 0:00:46]}  Bf7 {[%clk 0:00:34]} 25. Nd2 {[%clk 0:00:39]}  Rxe4 {[%clk 0:00:28]} 26. Nxe4 {[%clk 0:00:39]}  Nh4 {[%clk 0:00:27]} 27. Nd6 {[%clk 0:00:35]}  Nxg2 {[%clk 0:00:26]} 28. Kxg2 {[%clk 0:00:36]}  Ng6 {[%clk 0:00:26]} 29. Qd3 {[%clk 0:00:31]}  Rf8 {[%clk 0:00:23]} 30. Nxf7 {[%clk 0:00:25]}  Qxf7 {[%clk 0:00:23]} 31. Qd5 {[%clk 0:00:25]}  Ne5 {[%clk 0:00:21]} 32. Rc1 {[%clk 0:00:20]}  Bf6 {[%clk 0:00:18]} 33. Bd2 {[%clk 0:00:18]}  Rd8 {[%clk 0:00:19]} 34. Qxf7+ {[%clk 0:00:17]}  Kxf7 {[%clk 0:00:19]} 35. Be3 {[%clk 0:00:10]}  Ke6 {[%clk 0:00:19]} 36. h3 {[%clk 0:00:09]}  Rc8 {[%clk 0:00:16]} 37. Rc2 {[%clk 0:00:03]}  Be7 {[%clk 0:00:15]} 38. c6 {[%clk 0:00:04]}  bxc6 {[%clk 0:00:16]} 39. b6 {[%clk 0:00:05]}  c5 {[%clk 0:00:17]} 40. b7 {[%clk 0:00:03]}  Rb8 {[%clk 0:00:17]} 41. f4 {[%clk 0:00:03]}  gxf4 {[%clk 0:00:15]} 42. Bxf4 {[%clk 0:00:04]}  Rxb7 {[%clk 0:00:16]} 43. Re2 {[%clk 0:00:04]}  Bd6 {[%clk 0:00:16]} 44. Bxh6 {[%clk 0:00:03]}  Rb4 {[%clk 0:00:16]} 45. h4 {[%clk 0:00:02]}  Rxc4 {[%clk 0:00:16]} 46. Bg5 {[%clk 0:00:02]}  Rxa4 {[%clk 0:00:16]} 47. h5 {[%clk 0:00:03]}  Rg4+ {[%clk 0:00:17]} 0-1

[Event "January 9 Early 2024"]
[Site "https://www.chess.com"]
[Date "2024.01.11"]
[Round "4"]
[White "Astafurov, Arseniy"]
[Black "Chan, Wei Xuan Timothy"]
[Result "0-1"]
[Board "217"]
[TimeControl "180+1"]
[WhiteFideId "24175218"]
[BlackFideId "5802032"]
[WhiteElo "2536"]
[BlackElo "2731"]
[WhiteTeam "RUS"]
[BlackTeam "SGP"]
[WhiteClock "0:00:02"]
[BlackClock "0:00:05"]

1. c4 {[%clk 0:02:59]}  e6 {[%clk 0:02:58]} 2. Nf3 {[%clk 0:02:59]}  d5 {[%clk 0:02:58]} 3. g3 {[%clk 0:03:00]}  Nf6 {[%clk 0:02:59]} 4. Bg2 {[%clk 0:03:00]}  b6 {[%clk 0:02:59]} 5. O-O {[%clk 0:02:59]}  Bb7 {[%clk 0:03:00]} 6. Ne5 {[%clk 0:02:58]}  Be7 {[%clk 0:02:59]} 7. Qa4+ {[%clk 0:02:52]}  c6 {[%clk 0:02:58]} 8. cxd5 {[%clk 0:02:40]}  exd5 {[%clk 0:02:58]} 9. d4 {[%clk 0:02:41]}  O-O {[%clk 0:02:58]} 10. Nc3 {[%clk 0:02:41]}  Bd6 {[%clk 0:02:37]} 11. Bf4 {[%clk 0:02:41]}  Re8 {[%clk 0:02:36]} 12. Nd3 {[%clk 0:02:18]}  Ne4 {[%clk 0:02:22]} 13. Rfe1 {[%clk 0:02:00]}  Bxf4 {[%clk 0:01:54]} 14. Nxf4 {[%clk 0:02:00]}  Nxc3 {[%clk 0:01:48]} 15. bxc3 {[%clk 0:02:00]}  Nd7 {[%clk 0:01:49]} 16. c4 {[%clk 0:01:54]}  Nf6 {[%clk 0:01:14]} 17. Rac1 {[%clk 0:01:23]}  Ne4 {[%clk 0:00:50]} 18. cxd5 {[%clk 0:01:00]}  cxd5 {[%clk 0:00:47]} 19. Qb5 {[%clk 0:00:59]}  Qd6 {[%clk 0:00:42]} 20. Rc2 {[%clk 0:00:45]}  Rec8 {[%clk 0:00:27]} 21. Rec1 {[%clk 0:00:45]}  Rxc2 {[%clk 0:00:25]} 22. Rxc2 {[%clk 0:00:45]}  h6 {[%clk 0:00:25]} 23. h4 {[%clk 0:00:36]}  a6 {[%clk 0:00:25]} 24. Qb1 {[%clk 0:00:25]}  b5 {[%clk 0:00:20]} 25. Qc1 {[%clk 0:00:25]}  Re8 {[%clk 0:00:16]} 26. Rc7 {[%clk 0:00:22]}  Re7 {[%clk 0:00:16]} 27. Rxe7 {[%clk 0:00:16]}  Qxe7 {[%clk 0:00:17]} 28. Bxe4 {[%clk 0:00:11]}  dxe4 {[%clk 0:00:18]} 29. h5 {[%clk 0:00:10]}  Qd7 {[%clk 0:00:11]} 30. Qc5 {[%clk 0:00:10]}  e3 {[%clk 0:00:08]} 31. d5 {[%clk 0:00:03]}  exf2+ {[%clk 0:00:08]} 32. Kxf2 {[%clk 0:00:04]}  g5 {[%clk 0:00:03]} 33. hxg6 {[%clk 0:00:04]}  fxg6 {[%clk 0:00:04]} 34. Qd4 {[%clk 0:00:02]}  Qf5 {[%clk 0:00:03]} 35. e4 {[%clk 0:00:02]}  Qf7 {[%clk 0:00:03]} 36. Qe5 {[%clk 0:00:02]}  g5 {[%clk 0:00:04]} 37. Ke3 {[%clk 0:00:01]}  gxf4+ {[%clk 0:00:04]} 38. gxf4 {[%clk 0:00:02]}  Qh5 {[%clk 0:00:05]} 39. Qe8+ {[%clk 0:00:02]}  Qxe8 {[%clk 0:00:05]} 0-1

[Event "January 9 Early 2024"]
[Site "https://www.chess.com"]
[Date "2024.01.11"]
[Round "4"]
[White "Sveshnikov, Vladimir"]
[Black "Abdulrahman Mohammad, Al Taher"]
[Result "1-0"]
[Board "219"]
[TimeControl "180+1"]
[WhiteFideId "11601884"]
[BlackFideId "9310258"]
[WhiteElo "1943"]
[BlackElo "2212"]
[WhiteTeam "LAT"]
[BlackTeam "UAE"]
[WhiteClock "0:00:13"]
[BlackClock "0:00:01"]

1. e4 {[%clk 0:00:51]}  c5 {[%clk 0:02:59]} 2. d4 {[%clk 0:00:52]}  cxd4 {[%clk 0:02:58]} 3. Qxd4 {[%clk 0:00:51]}  Nc6 {[%clk 0:02:58]} 4. Qd3 {[%clk 0:00:51]}  g6 {[%clk 0:02:57]} 5. Nf3 {[%clk 0:00:51]}  Bg7 {[%clk 0:02:57]} 6. Be2 {[%clk 0:00:52]}  d6 {[%clk 0:02:57]} 7. O-O {[%clk 0:00:52]}  Nf6 {[%clk 0:02:56]} 8. Re1 {[%clk 0:00:53]}  O-O {[%clk 0:02:56]} 9. a3 {[%clk 0:00:53]}  Be6 {[%clk 0:02:51]} 10. Bf1 {[%clk 0:00:52]}  Rc8 {[%clk 0:02:50]} 11. Nc3 {[%clk 0:00:52]}  Nd7 {[%clk 0:02:44]} 12. Bg5 {[%clk 0:00:51]}  Nc5 {[%clk 0:02:41]} 13. Qd2 {[%clk 0:00:51]}  Bg4 {[%clk 0:02:31]} 14. Be2 {[%clk 0:00:45]}  Bxc3 {[%clk 0:02:02]} 15. Qxc3 {[%clk 0:00:40]}  Nxe4 {[%clk 0:02:02]} 16. Qe3 {[%clk 0:00:40]}  Nxg5 {[%clk 0:02:02]} 17. Nxg5 {[%clk 0:00:40]}  Bxe2 {[%clk 0:01:59]} 18. Rxe2 {[%clk 0:00:40]}  h6 {[%clk 0:01:46]} 19. Ne4 {[%clk 0:00:37]}  Kg7 {[%clk 0:01:45]} 20. Rd1 {[%clk 0:00:37]}  Qb6 {[%clk 0:01:38]} 21. Qxb6 {[%clk 0:00:32]}  axb6 {[%clk 0:01:38]} 22. Nc3 {[%clk 0:00:33]}  Rfe8 {[%clk 0:01:17]} 23. Nd5 {[%clk 0:00:32]}  b5 {[%clk 0:01:16]} 24. f4 {[%clk 0:00:24]}  Rcd8 {[%clk 0:00:39]} 25. Nc7 {[%clk 0:00:22]}  Rf8 {[%clk 0:00:39]} 26. Nxb5 {[%clk 0:00:22]}  d5 {[%clk 0:00:35]} 27. c3 {[%clk 0:00:21]}  e6 {[%clk 0:00:36]} 28. Nd4 {[%clk 0:00:21]}  Rc8 {[%clk 0:00:31]} 29. g4 {[%clk 0:00:21]}  Na5 {[%clk 0:00:26]} 30. f5 {[%clk 0:00:20]}  exf5 {[%clk 0:00:18]} 31. gxf5 {[%clk 0:00:21]}  Nc4 {[%clk 0:00:19]} 32. fxg6 {[%clk 0:00:19]}  Kxg6 {[%clk 0:00:19]} 33. Kh1 {[%clk 0:00:15]}  Kh7 {[%clk 0:00:19]} 34. Rf1 {[%clk 0:00:15]}  Nd6 {[%clk 0:00:12]} 35. Re5 {[%clk 0:00:14]}  Nc4 {[%clk 0:00:09]} 36. Rxd5 {[%clk 0:00:14]}  Nxb2 {[%clk 0:00:09]} 37. Rd7 {[%clk 0:00:15]}  Rxc3 {[%clk 0:00:09]} 38. Rxb7 {[%clk 0:00:15]}  Rxa3 {[%clk 0:00:08]} 39. Ne6 {[%clk 0:00:15]}  Re8 {[%clk 0:00:02]} 40. Rbxf7+ {[%clk 0:00:16]}  Kg8 {[%clk 0:00:02]} 41. Rg1+ {[%clk 0:00:13]}  Kh8 {[%clk 0:00:01]} 42. Nf4 {[%clk 0:00:13]} 1-0